[Event "Titled Tuesday Blitz August 1 Late 2023"]
[White "Harish, Neeraj"]
[Black "Omariev, Maksim"]
[WhiteFideId "30958130"]
[BlackFideId "4193423"]
[WhiteElo "2301"]
[BlackElo "2447"]
[Result "1-0"]
[Round "7"]
[TimeControl "180+1"]
[Date "2023.08.01"]
[WhiteClock "0:00:38"]
[BlackClock "0:00:01"]
[Board "112"]

1. e4 {[%clk 0:03:00]}  c5 {[%clk 0:02:58]} 2. Nf3 {[%clk 0:03:00]}  d6 {[%clk 0:02:58]} 3. d4 {[%clk 0:02:59]}  cxd4 {[%clk 0:02:59]} 4. Nxd4 {[%clk 0:02:59]}  Nf6 {[%clk 0:03:00]} 5. Nc3 {[%clk 0:03:00]}  a6 {[%clk 0:03:00]} 6. Be3 {[%clk 0:02:59]}  Ng4 {[%clk 0:03:00]} 7. Bg5 {[%clk 0:02:59]}  h6 {[%clk 0:03:00]} 8. Bh4 {[%clk 0:02:59]}  g5 {[%clk 0:03:01]} 9. Bg3 {[%clk 0:03:00]}  Bg7 {[%clk 0:03:01]} 10. Qd2 {[%clk 0:03:00]}  Nc6 {[%clk 0:03:01]} 11. Nb3 {[%clk 0:02:57]}  Be6 {[%clk 0:02:56]} 12. O-O-O {[%clk 0:02:55]}  Rc8 {[%clk 0:02:49]} 13. h4 {[%clk 0:02:52]}  gxh4 {[%clk 0:02:39]} 14. Rxh4 {[%clk 0:02:51]}  Nb4 {[%clk 0:02:10]} 15. Kb1 {[%clk 0:02:46]}  Rxc3 {[%clk 0:01:57]} 16. bxc3 {[%clk 0:02:45]}  Nc6 {[%clk 0:01:58]} 17. f4 {[%clk 0:02:42]}  h5 {[%clk 0:01:27]} 18. Be2 {[%clk 0:02:26]}  b5 {[%clk 0:01:06]} 19. f5 {[%clk 0:02:24]}  Bc4 {[%clk 0:01:07]} 20. Bxg4 {[%clk 0:02:21]}  hxg4 {[%clk 0:01:07]} 21. Rxg4 {[%clk 0:02:07]}  Bf6 {[%clk 0:01:07]} 22. Bf4 {[%clk 0:01:53]}  a5 {[%clk 0:00:54]} 23. Bg5 {[%clk 0:01:50]}  Rg8 {[%clk 0:00:46]} 24. Nd4 {[%clk 0:01:30]}  Qb6 {[%clk 0:00:37]} 25. Nxc6 {[%clk 0:01:14]}  Qxc6 {[%clk 0:00:38]} 26. Qf4 {[%clk 0:01:14]}  Bxc3 {[%clk 0:00:30]} 27. Bh6 {[%clk 0:01:11]}  Bxa2+ {[%clk 0:00:25]} 28. Kc1 {[%clk 0:01:07]}  Rxg4 {[%clk 0:00:19]} 29. Qxg4 {[%clk 0:01:07]}  Qc5 {[%clk 0:00:17]} 30. Rd3 {[%clk 0:01:00]}  b4 {[%clk 0:00:08]} 31. Be3 {[%clk 0:00:47]}  Qe5 {[%clk 0:00:05]} 32. Qg8+ {[%clk 0:00:42]}  Kd7 {[%clk 0:00:05]} 33. Qa8 {[%clk 0:00:39]}  Qb5 {[%clk 0:00:02]} 34. Qa7+ {[%clk 0:00:37]}  Kd8 {[%clk 0:00:02]} 35. Bb6+ {[%clk 0:00:37]}  Ke8 {[%clk 0:00:01]} 36. Qb8+ {[%clk 0:00:37]}  Kd7 {[%clk 0:00:01]} 37. Qc7+ {[%clk 0:00:37]}  Ke8 {[%clk 0:00:01]} 38. Qd8# {[%clk 0:00:38]} 1-0


[Site "https://www.chess.com"]

[Event "Titled Tuesday Blitz August 1 Late 2023"]
[White "Garmendiarov"]
[Black "Ingunza Curro, Andres"]
[BlackFideId "24526371"]
[WhiteElo "2281"]
[BlackElo "2424"]
[Result "0-1"]
[Round "7"]
[TimeControl "180+1"]
[Date "2023.08.01"]
[WhiteClock "0:00:01"]
[BlackClock "0:00:21"]
[Board "115"]

1. e4 {[%clk 0:03:00]}  c5 {[%clk 0:02:50]} 2. Nf3 {[%clk 0:03:01]}  Nc6 {[%clk 0:02:49]} 3. Bb5 {[%clk 0:03:00]}  g6 {[%clk 0:02:47]} 4. Bxc6 {[%clk 0:03:01]}  dxc6 {[%clk 0:02:48]} 5. d3 {[%clk 0:03:01]}  Bg7 {[%clk 0:02:48]} 6. h3 {[%clk 0:03:02]}  Nf6 {[%clk 0:02:47]} 7. Nc3 {[%clk 0:03:02]}  Nd7 {[%clk 0:02:47]} 8. Be3 {[%clk 0:03:03]}  e5 {[%clk 0:02:47]} 9. Qd2 {[%clk 0:03:04]}  h6 {[%clk 0:02:48]} 10. O-O {[%clk 0:03:04]}  Qe7 {[%clk 0:02:48]} 11. Nh2 {[%clk 0:03:03]}  Nf8 {[%clk 0:02:48]} 12. f4 {[%clk 0:03:04]}  exf4 {[%clk 0:02:49]} 13. Bxf4 {[%clk 0:03:04]}  Ne6 {[%clk 0:02:50]} 14. Bg3 {[%clk 0:03:04]}  Qg5 {[%clk 0:02:44]} 15. Qxg5 {[%clk 0:02:43]}  hxg5 {[%clk 0:02:45]} 16. e5 {[%clk 0:02:31]}  Nf4 {[%clk 0:02:23]} 17. Bxf4 {[%clk 0:02:17]}  gxf4 {[%clk 0:02:22]} 18. Rxf4 {[%clk 0:02:18]}  Be6 {[%clk 0:02:13]} 19. Re1 {[%clk 0:02:03]}  O-O-O {[%clk 0:02:08]} 20. Nf3 {[%clk 0:02:01]}  Rh5 {[%clk 0:01:58]} 21. Ra4 {[%clk 0:01:53]}  Kb8 {[%clk 0:01:49]} 22. Ne4 {[%clk 0:01:37]}  b5 {[%clk 0:01:14]} 23. Ra5 {[%clk 0:01:15]}  Bd5 {[%clk 0:01:07]} 24. Nxc5 {[%clk 0:00:43]}  Bxf3 {[%clk 0:01:00]} 25. gxf3 {[%clk 0:00:44]}  Bxe5 {[%clk 0:00:58]} 26. Kg2 {[%clk 0:00:29]}  Bxb2 {[%clk 0:00:40]} 27. Re7 {[%clk 0:00:26]}  Rxc5 {[%clk 0:00:37]} 28. Raxa7 {[%clk 0:00:25]}  Be5 {[%clk 0:00:35]} 29. Rab7+ {[%clk 0:00:18]}  Kc8 {[%clk 0:00:35]} 30. f4 {[%clk 0:00:05]}  Bb8 {[%clk 0:00:32]} 31. Re2 {[%clk 0:00:02]}  Bxf4 {[%clk 0:00:28]} 32. Rxf7 {[%clk 0:00:01]}  Bb8 {[%clk 0:00:27]} 33. Ree7 {[%clk 0:00:02]}  Rxc2+ {[%clk 0:00:26]} 34. Kf3 {[%clk 0:00:02]}  Rxa2 {[%clk 0:00:25]} 35. Ke4 {[%clk 0:00:02]}  Re2+ {[%clk 0:00:25]} 36. Kf3 {[%clk 0:00:03]}  Rxe7 {[%clk 0:00:25]} 37. Rxe7 {[%clk 0:00:04]}  Rxd3+ {[%clk 0:00:26]} 38. Ke4 {[%clk 0:00:04]}  Rd7 {[%clk 0:00:26]} 39. Re8+ {[%clk 0:00:04]}  Kb7 {[%clk 0:00:26]} 40. Rg8 {[%clk 0:00:05]}  Rh7 {[%clk 0:00:25]} 41. Rxg6 {[%clk 0:00:05]}  Rxh3 {[%clk 0:00:24]} 42. Rg7+ {[%clk 0:00:05]}  Kb6 {[%clk 0:00:24]} 43. Rg6 {[%clk 0:00:06]}  Rh4+ {[%clk 0:00:24]} 44. Kd3 {[%clk 0:00:06]}  b4 {[%clk 0:00:24]} 45. Kc2 {[%clk 0:00:06]}  Be5 {[%clk 0:00:24]} 46. Rg5 {[%clk 0:00:06]}  Rh2+ {[%clk 0:00:23]} 47. Kb3 {[%clk 0:00:06]}  Bc3 {[%clk 0:00:23]} 48. Kc4 {[%clk 0:00:06]}  Rh4+ {[%clk 0:00:23]} 49. Kb3 {[%clk 0:00:07]}  Bd2 {[%clk 0:00:22]} 50. Rg3 {[%clk 0:00:06]}  Bf4 {[%clk 0:00:20]} 51. Rf3 {[%clk 0:00:06]}  Bd6 {[%clk 0:00:21]} 52. Rf7 {[%clk 0:00:06]}  Rh3+ {[%clk 0:00:21]} 53. Kb2 {[%clk 0:00:05]}  Bc5 {[%clk 0:00:20]} 54. Kc2 {[%clk 0:00:05]}  Kb5 {[%clk 0:00:20]} 55. Rb7+ {[%clk 0:00:04]}  Kc4 {[%clk 0:00:20]} 56. Rd7 {[%clk 0:00:04]}  Bd4 {[%clk 0:00:21]} 57. Kb1 {[%clk 0:00:04]}  Rh1+ {[%clk 0:00:20]} 58. Kc2 {[%clk 0:00:04]}  Rh2+ {[%clk 0:00:21]} 59. Kb1 {[%clk 0:00:04]}  b3 {[%clk 0:00:22]} 60. Rh7 {[%clk 0:00:01]}  Rxh7 {[%clk 0:00:21]} 0-1


[Site "https://www.chess.com"]

[Event "Titled Tuesday Blitz August 1 Late 2023"]
[White "Sala, Giulia"]
[Black "Stachanczyk, Jacek"]
[WhiteFideId "2840451"]
[BlackFideId "1116657"]
[WhiteElo "2279"]
[BlackElo "2397"]
[Result "1-0"]
[Round "7"]
[TimeControl "180+1"]
[Date "2023.08.01"]
[WhiteClock "0:02:36"]
[BlackClock "0:02:14"]
[Board "116"]

1. e4 {[%clk 0:03:00]}  c5 {[%clk 0:02:49]} 2. Nf3 {[%clk 0:02:48]}  d6 {[%clk 0:02:49]} 3. d4 {[%clk 0:02:49]}  cxd4 {[%clk 0:02:50]} 4. Nxd4 {[%clk 0:02:50]}  Nf6 {[%clk 0:02:50]} 5. Nc3 {[%clk 0:02:50]}  g6 {[%clk 0:02:51]} 6. Be3 {[%clk 0:02:51]}  Bg7 {[%clk 0:02:51]} 7. f3 {[%clk 0:02:51]}  O-O {[%clk 0:02:52]} 8. Qd2 {[%clk 0:02:52]}  Nc6 {[%clk 0:02:52]} 9. Bc4 {[%clk 0:02:53]}  Bd7 {[%clk 0:02:48]} 10. O-O-O {[%clk 0:02:53]}  Rb8 {[%clk 0:02:49]} 11. h4 {[%clk 0:02:52]}  b5 {[%clk 0:02:47]} 12. Bb3 {[%clk 0:02:50]}  Nxd4 {[%clk 0:02:46]} 13. Bxd4 {[%clk 0:02:50]}  a5 {[%clk 0:02:46]} 14. h5 {[%clk 0:02:47]}  a4 {[%clk 0:02:45]} 15. Bxf6 {[%clk 0:02:47]}  Bxf6 {[%clk 0:02:41]} 16. hxg6 {[%clk 0:02:46]}  axb3 {[%clk 0:02:18]} 17. Qh6 {[%clk 0:02:40]}  Re8 {[%clk 0:02:14]} 18. Qxh7+ {[%clk 0:02:36]} 1-0


[Site "https://www.chess.com"]

[Event "Titled Tuesday Blitz August 1 Late 2023"]
[White "campochess"]
[Black "Kanyamarala, Trisha"]
[BlackFideId "45004722"]
[WhiteElo "2215"]
[BlackElo "2366"]
[Result "1-0"]
[Round "7"]
[TimeControl "180+1"]
[Date "2023.08.01"]
[WhiteClock "0:01:35"]
[BlackClock "0:02:08"]
[Board "122"]

1. e4 {[%clk 0:03:00]}  c5 {[%clk 0:02:57]} 2. Nc3 {[%clk 0:02:58]}  b6 {[%clk 0:02:56]} 3. g3 {[%clk 0:02:58]}  Bb7 {[%clk 0:02:57]} 4. Bg2 {[%clk 0:02:58]}  Nc6 {[%clk 0:02:58]} 5. Nge2 {[%clk 0:02:58]}  d6 {[%clk 0:02:56]} 6. O-O {[%clk 0:02:57]}  Nf6 {[%clk 0:02:56]} 7. d3 {[%clk 0:02:58]}  e6 {[%clk 0:02:56]} 8. b3 {[%clk 0:02:52]}  Be7 {[%clk 0:02:56]} 9. Bb2 {[%clk 0:02:52]}  O-O {[%clk 0:02:56]} 10. h4 {[%clk 0:02:50]}  d5 {[%clk 0:02:53]} 11. exd5 {[%clk 0:02:46]}  exd5 {[%clk 0:02:53]} 12. Nf4 {[%clk 0:02:45]}  Nd4 {[%clk 0:02:49]} 13. Nce2 {[%clk 0:02:42]}  Ne6 {[%clk 0:02:46]} 14. c4 {[%clk 0:02:37]}  Nc7 {[%clk 0:02:34]} 15. d4 {[%clk 0:02:18]}  cxd4 {[%clk 0:02:29]} 16. Nxd4 {[%clk 0:02:16]}  Rb8 {[%clk 0:02:26]} 17. Nf5 {[%clk 0:02:15]}  d4 {[%clk 0:02:24]} 18. Re1 {[%clk 0:02:13]}  Bc5 {[%clk 0:02:22]} 19. Bxb7 {[%clk 0:02:08]}  Rxb7 {[%clk 0:02:23]} 20. Bxd4 {[%clk 0:01:51]}  Na6 {[%clk 0:02:21]} 21. Nd5 {[%clk 0:01:42]}  Bxd4 {[%clk 0:02:10]} 22. Qxd4 {[%clk 0:01:40]}  Nxd5 {[%clk 0:02:08]} 23. Qxg7# {[%clk 0:01:35]} 1-0


[Site "https://www.chess.com"]

[Event "Titled Tuesday Blitz August 1 Late 2023"]
[White "Jahnz, Fabian"]
[Black "Vila Dupla, Aurelio"]
[WhiteFideId "4653300"]
[BlackFideId "2203383"]
[WhiteElo "2370"]
[BlackElo "2153"]
[Result "0-1"]
[Round "7"]
[TimeControl "180+1"]
[Date "2023.08.01"]
[WhiteClock "0:00:00"]
[BlackClock "0:00:06"]
[Board "128"]

1. e4 {[%clk 0:03:00]}  c5 {[%clk 0:02:59]} 2. Nf3 {[%clk 0:03:01]}  d6 {[%clk 0:02:59]} 3. Bb5+ {[%clk 0:03:00]}  Nd7 {[%clk 0:02:59]} 4. d4 {[%clk 0:03:00]}  cxd4 {[%clk 0:02:58]} 5. Qxd4 {[%clk 0:03:01]}  a6 {[%clk 0:02:54]} 6. Bxd7+ {[%clk 0:02:59]}  Bxd7 {[%clk 0:02:52]} 7. O-O {[%clk 0:03:00]}  Nf6 {[%clk 0:02:44]} 8. Re1 {[%clk 0:02:59]}  e6 {[%clk 0:02:36]} 9. Bg5 {[%clk 0:02:55]}  Be7 {[%clk 0:02:35]} 10. Nc3 {[%clk 0:02:51]}  Bc6 {[%clk 0:02:31]} 11. Rad1 {[%clk 0:02:44]}  h6 {[%clk 0:02:24]} 12. Bxf6 {[%clk 0:02:43]}  Bxf6 {[%clk 0:02:24]} 13. Qxd6 {[%clk 0:02:41]}  Qxd6 {[%clk 0:02:24]} 14. Rxd6 {[%clk 0:02:42]}  Bxc3 {[%clk 0:02:24]} 15. bxc3 {[%clk 0:02:42]}  Ke7 {[%clk 0:02:25]} 16. Rd2 {[%clk 0:02:38]}  Rhd8 {[%clk 0:02:22]} 17. Nd4 {[%clk 0:02:34]}  Be8 {[%clk 0:02:17]} 18. f3 {[%clk 0:02:31]}  g6 {[%clk 0:02:09]} 19. Red1 {[%clk 0:02:27]}  Rac8 {[%clk 0:02:07]} 20. Rd3 {[%clk 0:02:25]}  Rd7 {[%clk 0:02:02]} 21. Kf2 {[%clk 0:02:22]}  Rcd8 {[%clk 0:01:57]} 22. Nb3 {[%clk 0:02:16]}  Rc8 {[%clk 0:01:56]} 23. Rxd7+ {[%clk 0:02:10]}  Bxd7 {[%clk 0:01:55]} 24. Rd3 {[%clk 0:02:09]}  Bb5 {[%clk 0:01:54]} 25. Re3 {[%clk 0:02:09]}  e5 {[%clk 0:01:52]} 26. Nd2 {[%clk 0:01:59]}  Bc4 {[%clk 0:01:48]} 27. Nb3 {[%clk 0:01:43]}  b6 {[%clk 0:01:47]} 28. g3 {[%clk 0:01:37]}  a5 {[%clk 0:01:47]} 29. f4 {[%clk 0:01:37]}  f6 {[%clk 0:01:45]} 30. Ke1 {[%clk 0:01:23]}  a4 {[%clk 0:01:45]} 31. Nc1 {[%clk 0:01:21]}  Ke6 {[%clk 0:01:38]} 32. h4 {[%clk 0:01:16]}  g5 {[%clk 0:01:35]} 33. hxg5 {[%clk 0:01:16]}  hxg5 {[%clk 0:01:33]} 34. f5+ {[%clk 0:01:13]}  Kd6 {[%clk 0:01:11]} 35. a3 {[%clk 0:01:09]}  Rh8 {[%clk 0:01:10]} 36. Ne2 {[%clk 0:01:00]}  Rh1+ {[%clk 0:01:06]} 37. Kd2 {[%clk 0:01:00]}  Ra1 {[%clk 0:01:04]} 38. Nc1 {[%clk 0:00:45]}  Rxa3 {[%clk 0:01:01]} 39. Nd3 {[%clk 0:00:45]}  Ra1 {[%clk 0:00:56]} 40. Nb4 {[%clk 0:00:42]}  a3 {[%clk 0:00:52]} 41. Rf3 {[%clk 0:00:32]}  a2 {[%clk 0:00:50]} 42. Rf2 {[%clk 0:00:16]}  Rb1 {[%clk 0:00:44]} 43. Nxa2 {[%clk 0:00:17]}  Bxa2 {[%clk 0:00:43]} 44. Rh2 {[%clk 0:00:17]}  Bf7 {[%clk 0:00:38]} 45. Rh6 {[%clk 0:00:15]}  Ke7 {[%clk 0:00:38]} 46. Rh8 {[%clk 0:00:14]}  Rg1 {[%clk 0:00:36]} 47. Rb8 {[%clk 0:00:15]}  Rxg3 {[%clk 0:00:35]} 48. Rxb6 {[%clk 0:00:15]}  Rg2+ {[%clk 0:00:32]} 49. Kd3 {[%clk 0:00:15]}  Rg3+ {[%clk 0:00:31]} 50. Kd2 {[%clk 0:00:14]}  Rf3 {[%clk 0:00:30]} 51. Rb7+ {[%clk 0:00:14]}  Kf8 {[%clk 0:00:29]} 52. Rb6 {[%clk 0:00:13]}  Kg7 {[%clk 0:00:28]} 53. Rb7 {[%clk 0:00:13]}  g4 {[%clk 0:00:27]} 54. c4 {[%clk 0:00:13]}  g3 {[%clk 0:00:27]} 55. Rb1 {[%clk 0:00:08]}  Bxc4 {[%clk 0:00:22]} 56. Rg1 {[%clk 0:00:09]}  Bf7 {[%clk 0:00:20]} 57. Ke2 {[%clk 0:00:08]}  Ra3 {[%clk 0:00:20]} 58. Rg2 {[%clk 0:00:04]}  Bc4+ {[%clk 0:00:19]} 59. Kd2 {[%clk 0:00:04]}  Ba6 {[%clk 0:00:19]} 60. c3 {[%clk 0:00:03]}  Bb7 {[%clk 0:00:18]} 61. Rxg3+ {[%clk 0:00:03]}  Kf7 {[%clk 0:00:18]} 62. Re3 {[%clk 0:00:03]}  Ra2+ {[%clk 0:00:16]} 63. Kc1 {[%clk 0:00:04]}  Ba6 {[%clk 0:00:15]} 64. Kb1 {[%clk 0:00:03]}  Rf2 {[%clk 0:00:15]} 65. Kc1 {[%clk 0:00:04]}  Rf4 {[%clk 0:00:14]} 66. Kd1 {[%clk 0:00:04]}  Bb7 {[%clk 0:00:15]} 67. c4 {[%clk 0:00:04]}  Bxe4 {[%clk 0:00:14]} 68. c5 {[%clk 0:00:04]}  Bxf5 {[%clk 0:00:14]} 69. Rc3 {[%clk 0:00:05]}  Rd4+ {[%clk 0:00:14]} 70. Ke2 {[%clk 0:00:05]}  Rd8 {[%clk 0:00:14]} 71. c6 {[%clk 0:00:05]}  Rc8 {[%clk 0:00:14]} 72. c7 {[%clk 0:00:06]}  Ke6 {[%clk 0:00:13]} 73. Rc6+ {[%clk 0:00:06]}  Ke7 {[%clk 0:00:13]} 74. Ke3 {[%clk 0:00:06]}  Be6 {[%clk 0:00:11]} 75. Ke2 {[%clk 0:00:05]}  Kd7 {[%clk 0:00:11]} 76. Ra6 {[%clk 0:00:03]}  Rxc7 {[%clk 0:00:11]} 77. Ke3 {[%clk 0:00:04]}  Ke7 {[%clk 0:00:09]} 78. Rb6 {[%clk 0:00:04]}  Rd7 {[%clk 0:00:09]} 79. Ra6 {[%clk 0:00:05]}  Bd5 {[%clk 0:00:09]} 80. Rb6 {[%clk 0:00:05]}  Rd6 {[%clk 0:00:09]} 81. Rb5 {[%clk 0:00:04]}  Ke6 {[%clk 0:00:10]} 82. Rb8 {[%clk 0:00:04]}  Bc4 {[%clk 0:00:08]} 83. Re8+ {[%clk 0:00:05]}  Kd5 {[%clk 0:00:08]} 84. Rh8 {[%clk 0:00:06]}  f5 {[%clk 0:00:08]} 85. Rf8 {[%clk 0:00:06]}  f4+ {[%clk 0:00:08]} 86. Kf2 {[%clk 0:00:06]}  Kd4 {[%clk 0:00:08]} 87. Rb8 {[%clk 0:00:06]}  Bd5 {[%clk 0:00:08]} 88. Rf8 {[%clk 0:00:06]}  Be4 {[%clk 0:00:07]} 89. Rf7 {[%clk 0:00:06]}  Bd3 {[%clk 0:00:07]} 90. Rf8 {[%clk 0:00:04]}  Bc4 {[%clk 0:00:07]} 91. Rf5 {[%clk 0:00:04]}  Ke4 {[%clk 0:00:07]} 92. Rf8 {[%clk 0:00:04]}  Ra6 {[%clk 0:00:08]} 93. Rd8 {[%clk 0:00:03]}  Ra2+ {[%clk 0:00:08]} 94. Ke1 {[%clk 0:00:04]}  Ke3 {[%clk 0:00:08]} 95. Rd1 {[%clk 0:00:03]}  f3 {[%clk 0:00:07]} 96. Rc1 {[%clk 0:00:02]}  Re2+ {[%clk 0:00:07]} 97. Kd1 {[%clk 0:00:02]}  f2 {[%clk 0:00:07]} 98. Rc3+ {[%clk 0:00:02]}  Kf4 {[%clk 0:00:06]} 99. Rxc4+ {[%clk 0:00:03]}  Kf3 {[%clk 0:00:06]} 100. Rc3+ {[%clk 0:00:00]}  Re3 {[%clk 0:00:06]} 0-1


[Site "https://www.chess.com"]

[Event "Titled Tuesday Blitz August 1 Late 2023"]
[White "Rego, Pedro Filipe"]
[Black "Vaglio Munoz, Jaime"]
[WhiteFideId "1904310"]
[BlackFideId "6500145"]
[WhiteElo "2338"]
[BlackElo "2271"]
[Result "1-0"]
[Round "7"]
[TimeControl "180+1"]
[Date "2023.08.01"]
[WhiteClock "0:01:11"]
[BlackClock "0:01:29"]
[Board "129"]

1. e4 {[%clk 0:03:00]}  c5 {[%clk 0:02:49]} 2. Nf3 {[%clk 0:02:59]}  Qa5 {[%clk 0:02:49]} 3. Nc3 {[%clk 0:02:52]}  a6 {[%clk 0:02:49]} 4. b3 {[%clk 0:02:47]}  b5 {[%clk 0:02:48]} 5. Bb2 {[%clk 0:02:47]}  Bb7 {[%clk 0:02:47]} 6. d3 {[%clk 0:02:42]}  b4 {[%clk 0:02:46]} 7. Nb1 {[%clk 0:02:38]}  e6 {[%clk 0:02:46]} 8. Nbd2 {[%clk 0:02:38]}  Nf6 {[%clk 0:02:43]} 9. Nc4 {[%clk 0:02:37]}  Qc7 {[%clk 0:02:42]} 10. g3 {[%clk 0:02:35]}  d6 {[%clk 0:02:42]} 11. Bg2 {[%clk 0:02:34]}  Nbd7 {[%clk 0:02:42]} 12. O-O {[%clk 0:02:34]}  Be7 {[%clk 0:02:42]} 13. Re1 {[%clk 0:02:28]}  O-O {[%clk 0:02:18]} 14. Qe2 {[%clk 0:02:19]}  a5 {[%clk 0:02:17]} 15. a4 {[%clk 0:02:11]}  bxa3 {[%clk 0:02:15]} 16. Rxa3 {[%clk 0:02:10]}  Ba6 {[%clk 0:02:13]} 17. Rxa5 {[%clk 0:02:00]}  Bxc4 {[%clk 0:02:07]} 18. Rxa8 {[%clk 0:01:59]}  Rxa8 {[%clk 0:02:08]} 19. bxc4 {[%clk 0:01:56]}  Ra2 {[%clk 0:02:07]} 20. Bc3 {[%clk 0:01:56]}  Qa7 {[%clk 0:02:01]} 21. e5 {[%clk 0:01:54]}  dxe5 {[%clk 0:02:00]} 22. Nxe5 {[%clk 0:01:55]}  Qa4 {[%clk 0:01:59]} 23. Nxd7 {[%clk 0:01:53]}  Nxd7 {[%clk 0:01:56]} 24. Rc1 {[%clk 0:01:37]}  Bg5 {[%clk 0:01:53]} 25. f4 {[%clk 0:01:36]}  Bf6 {[%clk 0:01:48]} 26. Bxf6 {[%clk 0:01:33]}  Nxf6 {[%clk 0:01:48]} 27. Qf2 {[%clk 0:01:27]}  Qa3 {[%clk 0:01:47]} 28. Rb1 {[%clk 0:01:25]}  h5 {[%clk 0:01:45]} 29. f5 {[%clk 0:01:25]}  e5 {[%clk 0:01:44]} 30. Bd5 {[%clk 0:01:18]}  Qc3 {[%clk 0:01:43]} 31. Rb8+ {[%clk 0:01:12]}  Kh7 {[%clk 0:01:41]} 32. Bxf7 {[%clk 0:01:13]}  Rxc2 {[%clk 0:01:30]} 33. Bg6+ {[%clk 0:01:12]}  Kh6 {[%clk 0:01:29]} 34. Qe3# {[%clk 0:01:11]} 1-0


[Site "https://www.chess.com"]

[Event "Titled Tuesday Blitz August 1 Late 2023"]
[White "Tqebuchava, Zurab"]
[Black "Curtis, John"]
[WhiteFideId "13601113"]
[BlackFideId "3200256"]
[WhiteElo "2271"]
[BlackElo "2089"]
[Result "1-0"]
[Round "7"]
[TimeControl "180+1"]
[Date "2023.08.01"]
[WhiteClock "0:01:35"]
[BlackClock "0:02:07"]
[Board "130"]

1. e4 {[%clk 0:02:59]}  c5 {[%clk 0:02:58]} 2. Nf3 {[%clk 0:02:58]}  d6 {[%clk 0:02:56]} 3. Bb5+ {[%clk 0:02:57]}  Bd7 {[%clk 0:02:56]} 4. Bxd7+ {[%clk 0:02:56]}  Qxd7 {[%clk 0:02:56]} 5. c4 {[%clk 0:02:56]}  Nc6 {[%clk 0:02:55]} 6. d4 {[%clk 0:02:50]}  Qg4 {[%clk 0:02:55]} 7. O-O {[%clk 0:02:48]}  Qxe4 {[%clk 0:02:54]} 8. Nc3 {[%clk 0:02:47]}  Qg4 {[%clk 0:02:51]} 9. dxc5 {[%clk 0:02:04]}  dxc5 {[%clk 0:02:50]} 10. Nb5 {[%clk 0:02:04]}  Qc8 {[%clk 0:02:50]} 11. Qe2 {[%clk 0:01:59]}  Qd7 {[%clk 0:02:12]} 12. Rd1 {[%clk 0:01:52]}  O-O-O {[%clk 0:02:12]} 13. Rxd7 {[%clk 0:01:50]}  Rxd7 {[%clk 0:02:12]} 14. Bf4 {[%clk 0:01:46]}  f6 {[%clk 0:02:11]} 15. Qe6 {[%clk 0:01:39]}  Nd8 {[%clk 0:02:07]} 16. Nxa7# {[%clk 0:01:35]} 1-0


[Site "https://www.chess.com"]